[Event "DFMMLV 2017"]
[Site "Braunfels"]
[Date "2017.06.15"]
[Round "1"]
[White "Belenkaya, Dina"]
[Black "Wiesner, Paula"]
[Result "1-0"]
[ECO "C04"]
[WhiteElo "2306"]
[BlackElo "2068"]
[Annotator "ChessBase"]
[PlyCount "65"]
[EventDate "2017.??.??"]
[EventType "team-tourn"]
[EventCountry "GER"]
[SourceTitle "playchess.com"]
[Source "ChessBase"]
[SourceQuality "1"]
[TimeControl "40/5400+30:1800+30"]

1. e4 {[%emt 0:00:00]} e6 {[%emt 0:00:03]} 2. d4 {[%emt 0:00:00]} d5 {[%emt 0:00:03]} 3. Nd2 {[%emt 0:00:00]} Nc6 {[%emt 0:00:29]} 4. Ngf3 {[%emt 0:01:16]} Nf6 {[%emt 0:00:06]} 5. e5 {[%emt 0:00:09]} Nd7 {[%emt 0:00:10]} 6. Be2 {[%emt 0:02:06]} f6 {[%emt 0:00:42]} 7. exf6 {[%emt 0:00:11]} Qxf6 {[%emt 0:00:07]} 8. Nf1 {[%emt 0:00:18]} g6 {[%emt 0:01:43]} 9. Ne3 {[%emt 0:01:48]} Qg7 {[%emt 0:01:48]} 10. O-O {[%emt 0:01:46]} Nf6 {[%emt 0:07:25]} 11. c4 {[%emt 0:06:32]} Bd7 {[%emt 0:03:37]} 12. Re1 {[%emt 0:09:33]} O-O-O {[%emt 0:02:52]} 13. a3 {[%emt 0:01:44]} g5 {[%emt 0:02:11]} 14. b4 {[%emt 0:04:06]} g4 {[%emt 0:04:23]} 15. Ne5 {[%emt 0:01:40]} h5 {[%emt 0:13:03]} 16. Bb2 {[%emt 0:11:04]} Ne4 {[%emt 0:10:45]} 17. Bd3 {[%emt 0:04:20]} Bd6 {[%emt 0:04:53]} 18. cxd5 {[%emt 0:13:44]} exd5 {[%emt 0:08:45]} 19. Nxd5 {[%emt 0:05:46]} Ng5 {[%emt 0:02:01]} 20. Kh1 {[%emt 0:06:28]} g3 {[%emt 0:06:21]} 21. fxg3 {[%emt 0:04:03]} Bxe5 {[%emt 0:01:57]} 22. dxe5 {[%emt 0:00:44]} Bg4 {[%emt 0:00:22]} 23. Be2 {[%emt 0:03:17]} Be6 {[%emt 0:02:24]} 24. Bc4 {[%emt 0:02:20]} Qg8 {[%emt 0:04:13]} 25. b5 {[%emt 0:08:58]} Bxd5 {[%emt 0:01:30]} 26. Bxd5 {[%emt 0:01:17]} Rxd5 {[%emt 0:00:06]} 27. Qa4 {[%emt 0:00:27]} Nb8 {[%emt 0:02:58]} 28. e6 {[%emt 0:01:33]} Rh7 {[%emt 0:01:07]} 29. e7 {[%emt 0:04:42]} Rxe7 {[%emt 0:08:59]} 30. Rxe7 {[%emt 0:00:04]} Rd2 {[%emt 0:00:43]} 31. b6 {[%emt 0:01:44]} c6 {[%emt 0:01:21]} 32. Qf4 {[%emt 0:00:50]} Qd5 {[%emt 0:00:19]} 33. Qc7# 1-0

[Event "DFMMLV 2017"]
[Site "Braunfels"]
[Date "2017.06.15"]
[Round "1"]
[White "Rogozenco, Teodora"]
[Black "Zimmer, Elke"]
[Result "1/2-1/2"]
[ECO "D31"]
[WhiteElo "2147"]
[BlackElo "1951"]
[Annotator "NA"]
[PlyCount "92"]
[EventDate "2017.??.??"]
[EventType "team-tourn"]
[EventCountry "GER"]
[SourceTitle "playchess.com"]
[Source "ChessBase"]
[SourceQuality "1"]
[TimeControl "40/5400+30:1800+30"]

{[%evp 8,89,18,10,14,-12,6,-9,12,6,-5,-17,-1,-4,32767,32767,32767,24,53,40,47,18,53,32767,52,32767,32767,6,17,32767,32767,32767,32767,32767,-18,32767,32767,32767,32767,-42,41,32767,32767,32767,32767,32767,32767,32767,32767,32767,-44,-66,-22,-96,-59,-125,32767,-86,-37,-85,32767,32767,-52,32767,32767,32767,-72,32767,32767,32767,32767,32767,32767,32767,32767,32767,0,-35,32767,-18,0,32767,-31,-1]} 1. d4 {[%emt 0:00:00]} d5 {[%emt 0:00:04]} 2. c4 {[%emt 0:00:00]} e6 {[%emt 0:00:15]} 3. Nc3 {[%emt 0:00:00]} Bb4 {[%emt 0:01:02]} 4. e3 {[%emt 0:02:36]} Nf6 {[%emt 0:02:34]} 5. Bd3 {[%emt 0:05:36]} O-O {[%emt 0:03:45]} 6. Nge2 {[%emt 0:03:29]} dxc4 {[%emt 0:01:07]} 7. Bxc4 {[%emt 0:00:09]} b6 {[%emt 0:11:01] E48: Nimzo-Indian: Rubinstein: 5 Bd3 d5 including 6 Ne2, but excluding 6 a3} (7... e5 8. a3 Bd6 9. f3 Nc6 10. O-O a6 11. Ba2 b5 12. d5 Ne7 13. Ng3 Nf5 14. Nge4 Nxe4 15. Nxe4 Be7 {½-½ (48) Rakhmanov,A (2670)-Parligras,M (2605) Barcelona 2017}) 8. O-O {[%emt 0:01:01]} Bb7 {[%emt 0:00:40]} 9. a3 {[%emt 0:12:44]} Be7 {[%emt 0:01:48]} 10. b4 {[%emt 0:00:48] LiveBook: 3 Games} a5 {[%emt 0:10:21]} 11. b5 {[%emt 0:01:28]} Nbd7 {[%emt 0:03:30]} 12. Ng3 {[%emt 0:10:54]} g6 $146 {[%emt 0:07:46]} ({Predecessor:} 12... c5 13. Bb2 Qc7 14. Ba2 Rfd8 {1-0 (31) De Sousa,M (1973)-Leite,E (2168) Mogi das Cruzes 2013}) 13. e4 {[%emt 0:01:16]} e5 {[%emt 0:00:25]} 14. d5 {[%emt 0:00:54]} Re8 {[%emt 0:00:44]} 15. Kh1 {[%emt 0:03:39]} h5 {[%emt 0:03:43]} 16. h3 {[%emt 0:07:42]} Kg7 {[%emt 0:00:55]} 17. Qd2 {[%emt 0:13:33]} ({But not} 17. d6 cxd6 18. Qd2 Rh8 $17) 17... Rh8 {[%emt 0:00:30]} 18. Bb2 {[%emt 0:02:18]} Bd6 {[%emt 0:00:29]} 19. Rae1 {[%emt 0:05:08]} Qe7 {[%emt 0:04:47]} 20. Nb1 {[%emt 0:02:14]} Rag8 {[%emt 0:02:28]} 21. Qc2 {[%emt 0:01:01]} h4 {[%emt 0:01:48]} 22. Ne2 {[%emt 0:00:04]} g5 {[%emt 0:00:21]} 23. Ng1 {[%emt 0:07:51]} Nh5 {[%emt 0:01:24]} ({Black should try} 23... Bc8 $15) 24. Be2 {[%emt 0:01:58]} Nf4 {[%emt 0:04:04]} 25. Bg4 {[%emt 0:04:19]} Nf6 {[%emt 0:00:22]} 26. f3 {[%emt 0:03:34]} N6h5 {[%emt 0:03:59]} 27. Bxh5 {[%emt 0:01:40]} Nxh5 {[%emt 0:00:08]} 28. Ne2 {[%emt 0:00:48]} Bc8 {[%emt 0:00:55]} 29. Kg1 {[%emt 0:01:03]} f6 {[%emt 0:02:08]} (29... a4 $5) 30. Qc1 {[%emt 0:00:42]} (30. a4 $11 {keeps the balance.}) 30... Bc5+ {[%emt 0:00:38]} 31. Kh2 {[%emt 0:00:18]} Qf7 {[%emt 0:03:58]} 32. Nbc3 {[%emt 0:00:25] [#]} (32. a4 $11 {keeps the balance.}) 32... Ng3 $1 {[%emt 0:00:22]} 33. Nd1 {[%emt 0:05:11]} Nxf1+ {[%emt 0:03:05]} 34. Rxf1 {[%emt 0:00:03]} Qe7 {[%emt 0:01:32]} 35. Ne3 {[%emt 0:00:55]} Bd7 {[%emt 0:01:34]} 36. a4 {[%emt 0:01:47]} Rc8 {[%emt 0:03:30]} 37. Nc4 {[%emt 0:00:16]} Kf7 {[%emt 0:01:49]} 38. Qc2 {[%emt 0:00:33]} Bb4 {[%emt 0:00:56]} 39. Nc1 {[%emt 0:00:18]} Kg6 {[%emt 0:02:22]} 40. Nd3 {[%emt 0:00:28]} Bd6 {[%emt 0:30:08]} 41. Kh1 {[%emt 0:30:31]} Rce8 {[%emt 0:10:58]} 42. Re1 {[%emt 0:00:00]} Rc8 {[%emt 0:00:00]} 43. Qc1 {[%emt 0:00:00]} Rhe8 {[%emt 0:00:00]} 44. Qa1 {[%emt 0:00:00]} Kh6 {[%emt 0:00:00]} 45. Re2 $11 {[%emt 0:00:00]} Qf7 46. Nxd6 cxd6 1/2-1/2

[Event "DFMMLV 2017"]
[Site "Braunfels"]
[Date "2017.06.15"]
[Round "1"]
[White "Malachowski, Margrit"]
[Black "Loebel, Petra"]
[Result "1-0"]
[ECO "C05"]
[WhiteElo "2132"]
[BlackElo "1870"]
[Annotator "NA"]
[PlyCount "81"]
[EventDate "2017.??.??"]
[EventType "team-tourn"]
[EventCountry "GER"]
[SourceTitle "playchess.com"]
[Source "ChessBase"]
[SourceQuality "1"]
[TimeControl "40/5400+30:1800+30"]

{[%evp 8,80,26,29,33,26,31,7,16,3,8,-2,14,10,16,-9,-8,32767,32767,-14,29,32767,47,32767,32767,32767,85,87,32767,32767,32767,32767,32767,37,71,32767,32767,85,32767,32767,81,32767,32767,78,32767,32767,157,32767,113,109,32767,32767,32767,32767,32767,32767,32767,32767,316,32767,32767,32767,32767,32767,32767,225,32767,32767,32767,32767,226,243,32767,253,2326]} 1. e4 {[%emt 0:00:00]} e6 {[%emt 0:00:17]} 2. d4 {[%emt 0:00:00]} d5 {[%emt 0:00:06]} 3. Nd2 {[%emt 0:00:26]} Nf6 {[%emt 0:00:33]} 4. e5 {[%emt 0:00:10]} Nfd7 {[%emt 0:00:04]} 5. Bd3 {[%emt 0:00:51]} b6 {[%emt 0:02:20]} 6. c3 {[%emt 0:02:18]} Ba6 {[%emt 0:00:10]} 7. Ndf3 {[%emt 0:02:26]} Bxd3 {[%emt 0:02:46]} 8. Qxd3 {[%emt 0:00:09]} c5 {[%emt 0:00:14]} 9. Ne2 {[%emt 0:00:18]} Nc6 {[%emt 0:00:36] C06: French Tarrasch: 3...Nf6 4 e5 Nfd7 5 Bd3 main lines} (9... Be7 10. h4 Nc6 11. Bd2 Qc7 12. Nf4 Nf8 13. Kf1 h6 14. Rh3 O-O-O 15. Re1 Kb7 16. g4 Rc8 17. dxc5 {½-½ (30) Horvath,T (2430)-Socko,B (2635) Austria 2008}) 10. O-O {[%emt 0:04:08]} Be7 {[%emt 0:07:49] LiveBook: 5 Games} 11. Be3 {[%emt 0:10:10]} c4 {[%emt 0:08:18]} 12. Qc2 {[%emt 0:04:36]} b5 {[%emt 0:13:48]} 13. Nd2 $1 {[%emt 0:05:54]} h5 $146 {[%emt 0:16:09]} ({Predecessor:} 13... Nb6 14. f4 g6 15. g4 f5 16. exf6 Bxf6 17. Nf3 Qc7 {½-½ (17) Degenhardt,N (2150)-Stadtmann,J (2205) Germany 1989}) 14. Nf4 {[%emt 0:10:21]} Nf8 {[%emt 0:03:40]} 15. b3 {[%emt 0:01:58]} g5 {[%emt 0:05:02]} 16. Ne2 {[%emt 0:00:49]} Ng6 {[%emt 0:00:22]} 17. bxc4 {[%emt 0:00:27]} bxc4 {[%emt 0:00:19]} 18. Qa4 {[%emt 0:01:14]} Qd7 {[%emt 0:00:38]} 19. Qc2 {[%emt 0:09:26]} Qd8 {[%emt 0:12:39]} 20. Rab1 {[%emt 0:06:46]} Rb8 {[%emt 0:04:57]} 21. Rxb8 {[%emt 0:06:58]} Qxb8 {[%emt 0:00:51]} 22. f4 {[%emt 0:00:31]} gxf4 {[%emt 0:03:58]} 23. Bxf4 {[%emt 0:02:56]} h4 {[%emt 0:03:55]} 24. Nf3 {[%emt 0:02:02]} Qd8 {[%emt 0:01:13]} 25. Bc1 {[%emt 0:06:45]} Qb6 {[%emt 0:02:40]} 26. Kh1 {[%emt 0:01:14]} Bd8 {[%emt 0:00:53]} (26... Kd7 $142) 27. Bg5 {[%emt 0:04:32]} Rh5 {[%emt 0:02:14]} 28. Rb1 {[%emt 0:03:30]} Qc7 {[%emt 0:00:15]} 29. Bxd8 {[%emt 0:00:15]} Kxd8 {[%emt 0:00:43]} 30. Qc1 {[%emt 0:02:33]} Qe7 {[%emt 0:00:47]} 31. Qb2 {[%emt 0:01:41]} Kc8 {[%emt 0:00:27]} 32. Qb5 {[%emt 0:00:28]} Qd7 {[%emt 0:03:00]} 33. Qa6+ {[%emt 0:01:17]} Kd8 {[%emt 0:00:08]} 34. Rb7 {[%emt 0:00:25]} Qc8 {[%emt 0:00:30]} 35. Qb5 {[%emt 0:00:16]} Nge7 {[%emt 0:01:55]} 36. Nf4 {[%emt 0:03:46]} Rh8 {[%emt 0:01:31]} 37. Ng5 {[%emt 0:01:02]} Ke8 {[%emt 0:00:14]} 38. Kg1 {[%emt 0:01:45]} Kf8 {[%emt 0:01:29]} 39. a4 {[%emt 0:00:53]} Kg7 {[%emt 0:01:30]} 40. a5 {[%emt 0:01:32]} Qd8 $18 {[%emt 0:30:59]} (40... Rh6 41. Qb1 Qf8) 41. Ngxe6+ {[%emt 0:30:26] Qe8 Ng5} 1-0

[Event "DFMMLV 2017"]
[Site "Braunfels"]
[Date "2017.06.15"]
[Round "1"]
[White "Clopes Llahi, Judit"]
[Black "Klek, Hanna Marie"]
[Result "1/2-1/2"]
[ECO "C44"]
[WhiteElo "2122"]
[BlackElo "2368"]
[Annotator "NA"]
[PlyCount "85"]
[EventDate "2017.??.??"]
[EventType "team-tourn"]
[EventCountry "GER"]
[SourceTitle "playchess.com"]
[Source "ChessBase"]
[SourceQuality "1"]
[TimeControl "40/5400+30:1800+30"]

{[%evp 8,85,20,22,31,0,4,-18,70,56,32767,32767,32767,32767,82,60,67,54,76,25,50,11,32767,32767,42,18,32767,32767,22,10,15,20,32767,-18,32767,32767,-47,32767,-56,32767,32767,-69,-66,-73,0,0,0,-15,32767,32767,32767,32767,32767,32767,32767,32767,-18,32767,0,7,32767,32767,32767,32767,32767,4,8,6,2,9,32767,0,0,6,0,0,32767,0,0,2]} 1. e4 {[%emt 0:00:00]} e5 {[%emt 0:00:04]} 2. Nf3 {[%emt 0:00:00]} Nc6 {[%emt 0:00:06]} 3. d4 {[%emt 0:00:03]} exd4 {[%emt 0:00:05]} 4. Nxd4 {[%emt 0:00:07]} Bb4+ {[%emt 0:00:05]} 5. c3 {[%emt 0:00:45]} Bc5 {[%emt 0:00:05]} 6. Be3 {[%emt 0:21:29]} Bb6 $1 {[%emt 0:00:06] C45: Scotch Game} 7. Be2 {[%emt 0:12:39] LiveBook: 6 Games} (7. Nf5 g6 8. Bxb6 axb6 9. Ne3 Nf6 10. f3 O-O 11. c4 Nh5 12. Qd2 f5 13. Nc3 f4 14. Ned5 Qh4+ 15. Qf2 {1-0 (30) Yu,Y (2729)-Bu,X (2705) Doha 2016}) 7... Qh4 {[%emt 0:10:01]} (7... Nf6 $11) 8. Nd2 {[%emt 0:02:51]} Nxd4 $146 {[%emt 0:04:33]} ({Predecessor:} 8... d6 9. O-O Bd7 10. a4 Qf6 11. Nc4 Bxd4 12. cxd4 Qe7 13. Bf3 {1-0 (21) Ofstad,P (2200)-Peters,P Bad Liebenzell 1996}) 9. cxd4 {[%emt 0:02:34]} d5 {[%emt 0:05:51]} 10. exd5 {[%emt 0:05:43]} Ne7 {[%emt 0:01:45]} 11. Bb5+ {[%emt 0:03:26]} c6 {[%emt 0:08:30]} 12. dxc6 {[%emt 0:02:17]} bxc6 {[%emt 0:00:06]} 13. Bc4 {[%emt 0:01:11]} Bg4 {[%emt 0:08:08]} 14. Be2 {[%emt 0:04:14]} h5 {[%emt 0:09:32]} 15. Nf3 {[%emt 0:05:02]} Ba5+ {[%emt 0:06:31]} 16. Bd2 {[%emt 0:01:20]} Bxf3 {[%emt 0:00:57]} 17. Bxf3 {[%emt 0:00:10]} Qxd4 {[%emt 0:04:09]} 18. Bxa5 {[%emt 0:00:10]} Qe5+ {[%emt 0:00:04]} 19. Qe2 {[%emt 0:00:26]} Qxa5+ {[%emt 0:00:05]} 20. Kf1 {[%emt 0:03:16]} Rh6 {[%emt 0:03:15]} 21. Rc1 {[%emt 0:07:08]} Kf8 {[%emt 0:08:45]} 22. h4 {[%emt 0:05:35]} Re6 {[%emt 0:09:06]} 23. Qc4 {[%emt 0:00:54]} Rb8 {[%emt 0:00:53]} 24. g3 {[%emt 0:09:20]} Rxb2 {[%emt 0:01:54]} 25. Kg2 {[%emt 0:01:31]} Qb6 {[%emt 0:07:30]} (25... Nf5 $15 26. Rc2 Rxc2 27. Qxc2 Nd4) 26. Rc2 $1 {[%emt 0:00:46]} g6 {[%emt 0:03:14]} 27. Rhc1 {[%emt 0:00:49]} Rb4 {[%emt 0:04:22]} 28. Qd3 {[%emt 0:00:58]} Rd4 {[%emt 0:01:09]} 29. Qa3 {[%emt 0:00:28]} Kg8 {[%emt 0:00:54]} 30. Rb2 {[%emt 0:01:15]} Qc7 {[%emt 0:00:39]} 31. Qc5 {[%emt 0:00:26]} Nf5 {[%emt 0:01:48]} 32. Rcb1 {[%emt 0:01:53]} Re7 {[%emt 0:00:50]} (32... Kg7 $15) 33. Qxc6 {[%emt 0:03:31]} Qxc6 {[%emt 0:01:21]} 34. Bxc6 {[%emt 0:00:04]} Rc7 {[%emt 0:00:18]} 35. Bf3 {[%emt 0:00:23]} Nd6 {[%emt 0:00:14]} 36. Rd1 {[%emt 0:01:58]} Rxd1 {[%emt 0:00:15]} 37. Bxd1 {[%emt 0:00:04]} Kf8 {[%emt 0:00:17]} 38. Bb3 {[%emt 0:00:54]} Rc5 {[%emt 0:01:00]} 39. Rc2 {[%emt 0:01:26]} Rxc2 {[%emt 0:00:51]} 40. Bxc2 {[%emt 0:00:05]} Nb5 {[%emt 0:30:12]} 41. Bd3 {[%emt 0:31:21]} Nd4 {[%emt 0:00:00]} 42. f3 {[%emt 0:00:00]} Kg7 {[%emt 0:00:00]} 43. g4 $11 {[%emt 0:00:00]} 1/2-1/2

[Event "DFMMLV 2017"]
[Site "Braunfels"]
[Date "2017.06.15"]
[Round "1"]
[White "Plass, Mariana-Camelia"]
[Black "Bakalarz, Grazyna"]
[Result "1/2-1/2"]
[ECO "D85"]
[WhiteElo "2078"]
[BlackElo "1946"]
[Annotator "NA"]
[PlyCount "81"]
[EventDate "2017.??.??"]
[EventType "team-tourn"]
[EventCountry "GER"]
[SourceTitle "playchess.com"]
[Source "ChessBase"]
[SourceQuality "1"]
[TimeControl "40/5400+30:1800+30"]

1. d4 {[%emt 0:00:00]} Nf6 {[%emt 0:00:06]} 2. c4 {[%emt 0:00:00]} g6 {[%emt 0:00:16]} 3. Nc3 {[%emt 0:00:00]} d5 {[%emt 0:00:14]} 4. cxd5 {[%emt 0:01:32]} Nxd5 {[%emt 0:00:07]} 5. Bd2 {[%emt 0:01:30]} Bg7 {[%emt 0:00:58]} 6. e4 {[%emt 0:00:14] LiveBook: 1229 Games} Nb6 {[%emt 0:04:41]} 7. Be3 {[%emt 0:00:14]} O-O {[%emt 0:08:22]} 8. Nf3 {[%emt 0:03:01]} Bg4 {[%emt 0:02:22] D90: Grünfeld: 4 Nf3 Bg7 sidelines} 9. d5 {[%emt 0:10:03]} (9. Be2 $11 Nc6 10. d5 Bxf3 11. gxf3 Ne5 12. Qb3 Qc8 13. h4 c5 14. O-O-O c4 15. Qc2 Nd3+ 16. Bxd3 cxd3 17. Rxd3 Nc4 18. Bd4 Bxd4 19. Rxd4 Qc5 20. Rhd1 {0-1 (45) Shimanov,A (2644)-Durarbayli,V (2590) Warsaw 2014}) 9... c6 {[%emt 0:03:23]} 10. Qb3 {[%emt 0:06:09]} cxd5 {[%emt 0:05:04]} 11. Nxd5 $146 {[%emt 0:17:02]} ({Predecessor:} 11. exd5 N8d7 12. Nd4 Nf6 13. h3 Bd7 14. Be2 Nfxd5 15. Nxd5 Ba4 16. Qb4 Qxd5 {1-0 (36) Herrmann,C (1946)-Ehlers,M (1835) Mecklenburg VP 2009}) 11... Nxd5 {[%emt 0:02:48]} 12. exd5 {[%emt 0:00:24]} Bxf3 {[%emt 0:02:24]} 13. gxf3 {[%emt 0:00:01]} Qa5+ {[%emt 0:03:10]} 14. Bd2 {[%emt 0:00:42]} Qc7 {[%emt 0:12:33]} 15. Be2 {[%emt 0:01:46]} Na6 {[%emt 0:05:31]} 16. Rc1 {[%emt 0:07:12]} Qb6 {[%emt 0:06:04]} 17. Qxb6 {[%emt 0:02:24]} axb6 {[%emt 0:00:05]} 18. b3 {[%emt 0:06:57]} Rfd8 {[%emt 0:02:08]} 19. Bc4 {[%emt 0:04:26]} b5 {[%emt 0:01:31]} 20. Bxb5 {[%emt 0:00:29]} Rxd5 {[%emt 0:00:16]} 21. Bxa6 {[%emt 0:00:30]} bxa6 {[%emt 0:02:47]} 22. Be3 {[%emt 0:00:53]} Bb2 {[%emt 0:10:12]} 23. Rc4 {[%emt 0:09:36]} Ra5 {[%emt 0:02:45]} 24. Rc2 {[%emt 0:05:36]} Rxa2 {[%emt 0:01:20]} ({Black should try} 24... Ba3 $15) 25. O-O $1 {[%emt 0:00:16]} Rb8 {[%emt 0:03:36]} 26. Bd4 {[%emt 0:00:41]} Bxd4 {[%emt 0:00:43]} 27. Rxa2 {[%emt 0:00:06]} Rxb3 {[%emt 0:00:15]} 28. Kg2 {[%emt 0:02:02]} (28. Rd1 $5 {[%cal Rd1d4]} Bb6 29. Rxa6 $11) 28... Rb5 {[%emt 0:05:22]} 29. Rd1 {[%emt 0:02:55]} Rg5+ {[%emt 0:00:50]} 30. Kf1 {[%emt 0:01:05]} Bc3 {[%emt 0:03:07]} 31. Rxa6 {[%emt 0:00:33]} Rh5 {[%emt 0:00:55]} 32. Rd3 {[%emt 0:03:36]} Bb4 {[%emt 0:01:09]} 33. Ra4 {[%emt 0:01:06]} Bd6 {[%emt 0:02:07]} 34. h4 {[%emt 0:00:10]} Rf5 {[%emt 0:01:57]} 35. Kg2 {[%emt 0:01:13]} h5 {[%emt 0:01:45]} 36. Rad4 {[%emt 0:01:15]} Rf4 {[%emt 0:02:14]} 37. Re4 {[%emt 0:04:44]} f5 {[%emt 0:02:29]} 38. Rxf4 {[%emt 0:05:21]} Bxf4 {[%emt 0:00:02]} 39. Rd4 {[%emt 0:00:48]} (39. Rd7 $5 {[%cal Rd7e7]}) 39... Be5 {[%emt 0:00:20]} 40. Ra4 {[%emt 0:01:01]} f4 {[%emt 0:32:15]} 41. Re4 $14 {[%emt 0:31:03]} 1/2-1/2

[Event "DFMMLV 2017"]
[Site "Braunfels"]
[Date "2017.06.15"]
[Round "1"]
[White "Gheng, Simona"]
[Black "Ratay, Meike"]
[Result "*"]
[ECO "C77"]
[WhiteElo "1999"]
[BlackElo "1767"]
[Annotator "NA"]
[PlyCount "18"]
[EventDate "2017.??.??"]
[EventType "team-tourn"]
[EventCountry "GER"]
[SourceTitle "playchess.com"]
[Source "ChessBase"]
[SourceQuality "1"]
[TimeControl "40/5400+30:1800+30"]

{[%evp 10,18,19,10,0,2,8,1,20,24,14]} 1. e4 {[%emt 0:00:00]} e5 {[%emt 0:00:02]} 2. Nf3 {[%emt 0:00:00]} Nc6 {[%emt 0:00:03]} 3. Bb5 {[%emt 0:00:10]} a6 {[%emt 0:00:02]} 4. Ba4 {[%emt 0:00:07]} Nf6 {[%emt 0:00:07]} 5. d3 {[%emt 0:00:22]} Bc5 {[%emt 0:00:20]} 6. O-O {[%emt 0:00:13]} b5 {[%emt 0:00:04]} 7. Bb3 {[%emt 0:00:04]} d6 {[%emt 0:00:16]} 8. c3 {[%emt 0:00:28]} Bg4 {[%emt 0:01:53]} 9. Nbd2 {[%emt 0:00:24]} (9. h3 $5 {[%cal Rh3g4]} Be6 10. Bxe6 fxe6 11. b4 $14) 9... O-O $11 {[%emt 0:00:46] LiveBook: 5 Games} *

[Event "DFMMLV 2017"]
[Site "Braunfels"]
[Date "2017.06.15"]
[Round "1"]
[White "Gheng, Simona"]
[Black "Skibbe, Diana"]
[Result "1-0"]
[ECO "C77"]
[WhiteElo "1999"]
[BlackElo "2018"]
[Annotator "NA"]
[PlyCount "91"]
[EventDate "2017.??.??"]
[EventType "team-tourn"]
[EventCountry "GER"]
[SourceTitle "playchess.com"]
[Source "ChessBase"]
[SourceQuality "1"]
[TimeControl "40/5400+30:1800+30"]

1. e4 {[%emt 0:00:00]} e5 {[%emt 0:00:02]} 2. Nf3 {[%emt 0:00:00]} Nc6 {[%emt 0:00:03]} 3. Bb5 {[%emt 0:00:10]} a6 {[%emt 0:00:02]} 4. Ba4 {[%emt 0:00:07]} Nf6 {[%emt 0:00:07]} 5. d3 {[%emt 0:00:22]} Bc5 {[%emt 0:00:20]} 6. O-O {[%emt 0:00:13]} b5 {[%emt 0:00:04]} 7. Bb3 {[%emt 0:00:04]} d6 {[%emt 0:00:16]} 8. c3 {[%emt 0:00:28]} Bg4 {[%emt 0:01:53]} 9. Nbd2 {[%emt 0:00:24] C78: Ruy Lopez: Archangelsk and Möller Defences} (9. h3 $5 {[%cal Rh3g4]} Be6 10. Bxe6 fxe6 11. b4 $14) 9... O-O {[%emt 0:00:46] LiveBook: 5 Games} 10. Re1 {[%emt 0:02:00]} (10. h3 Bh5 11. Re1 d5 12. exd5 Nxd5 13. Ne4 Bb6 14. Ng3 Bxf3 15. Qxf3 Nde7 16. Bg5 Qd6 17. Qe4 Rae8 18. Bxe7 Nxe7 19. Qxe5 Qxe5 20. Rxe5 {½-½ (51) Ponizil,C (2436)-Biolek,R (2432) Czechia 2015}) 10... Ne7 {[%emt 0:05:37]} 11. Nf1 {[%emt 0:02:43]} Ng6 {[%emt 0:00:15]} 12. h3 {[%emt 0:04:04]} Be6 {[%emt 0:00:20]} 13. a4 $146 {[%emt 0:02:38]} ({Predecessor:} 13. Ng3 Qd7 14. d4 Bxb3 15. Qxb3 {1-0 (43) Magana,B (2092)-Abera,A (2173) Kamwokya 2015}) 13... Rb8 {[%emt 0:02:33]} 14. axb5 {[%emt 0:01:09]} axb5 {[%emt 0:00:07]} 15. Be3 {[%emt 0:06:03]} Bxe3 {[%emt 0:00:17]} 16. fxe3 {[%emt 0:00:12]} c5 {[%emt 0:00:38]} 17. Bxe6 {[%emt 0:02:31]} fxe6 {[%emt 0:00:27]} 18. Qb3 {[%emt 0:00:47]} d5 {[%emt 0:00:12]} 19. Ra6 {[%emt 0:04:45]} c4 {[%emt 0:02:48]} 20. Qb4 {[%emt 0:03:42]} Rb6 {[%emt 0:02:16]} 21. Rea1 {[%emt 0:03:35]} cxd3 {[%emt 0:00:45]} 22. Ng5 {[%emt 0:00:47]} Nxe4 {[%emt 0:03:31]} 23. Nxe4 {[%emt 0:03:29]} dxe4 {[%emt 0:02:21]} 24. Rxb6 {[%emt 0:00:17]} Qxb6 {[%emt 0:04:03]} 25. Qxe4 {[%emt 0:02:01]} Qd8 {[%emt 0:04:44]} 26. Nd2 {[%emt 0:04:27]} Qd5 {[%emt 0:00:13]} 27. Qg4 {[%emt 0:04:30]} Rf6 {[%emt 0:02:29]} 28. Ne4 {[%emt 0:03:17]} Rf5 {[%emt 0:00:35]} 29. Ng3 {[%emt 0:15:45]} Rf7 {[%emt 0:04:02]} 30. Rd1 {[%emt 0:00:30]} Qc4 {[%emt 0:03:29]} 31. Qe4 {[%emt 0:01:12]} Rd7 {[%emt 0:01:09]} 32. Rd2 {[%emt 0:02:48]} Rd5 {[%emt 0:04:00]} 33. Qf3 {[%emt 0:06:02]} b4 {[%emt 0:02:41]} 34. Rf2 {[%emt 0:01:24]} Qc8 {[%emt 0:06:47]} 35. Qf7+ {[%emt 0:07:39]} Kh8 {[%emt 0:00:03]} 36. Ne4 {[%emt 0:00:12]} bxc3 {[%emt 0:01:47]} 37. bxc3 {[%emt 0:00:36]} Qg8 {[%emt 0:01:41]} 38. Qa7 {[%emt 0:01:22]} Rd8 {[%emt 0:01:42]} 39. Ng5 {[%emt 0:01:08]} h6 {[%emt 0:01:31]} 40. Nf7+ {[%emt 0:01:49]} Kh7 {[%emt 0:30:01]} 41. Nxd8 {[%emt 0:30:11]} Qxd8 {[%emt 0:00:03] [#]} 42. Rf7 $1 {[%emt 0:00:41]} Qg8 {[%emt 0:00:05]} 43. Rd7 {[%emt 0:00:20]} Qf8 {[%emt 0:03:50]} 44. Rxd3 {[%emt 0:02:34]} e4 {[%emt 0:00:54]} 45. Rd1 {[%emt 0:01:09]} Ne5 {[%emt 0:04:15]} (45... Nh4 $142 46. Qc7 Nf5) 46. Qd4 $18 {[%emt 0:02:31]} 1-0